bitfinex-derivatives/quotes_BNBF0:USTF0_20250221
["timestamp","ask_amount","ask_price","bid_price","bid_amount"]
[1740148811065,1.10272306,661.69,660.33,0.30287886]
[1740148811261,1.10272306,661.68,660.4,1.34900298]
[1740148811467,1.10272306,661.67,660.42,0.30283758]
[1740148811669,1.92401612,661.66,660.42,0.30283758]
[1740148811964,1.92401612,661.65,660.42,0.30283758]
[1740148812167,1.10272306,661.64,660.42,0.30283758]
[1740148812368,1.10272306,661.63,660.42,0.30283758]
[1740148812570,1.10272306,661.62,660.42,0.30283758]
[1740148812870,1.10272306,661.61,660.42,0.30283758]
[1740148813064,1.10272306,661.6,660.42,0.30283758]
[1740148813265,1.92401612,661.59,660.42,0.30283758]
[1740148813464,1.10272306,661.58,660.42,0.30283758]
[1740148813772,1.10272306,661.57,660.42,0.30283758]
[1740148813971,1.10272306,661.56,660.42,0.30283758]
[1740148814172,1.10870595,661.55,660.42,0.30283758]
[1740148814471,1.10867053,661.54,660.42,0.30283758]
[1740148814671,1.10867053,661.53,660.42,0.30283758]
[1740148814873,1.10867053,661.52,660.74,1.34900298]
[1740148815171,1.93859589,661.51,660.75,0.30268634]
[1740148815471,1.10867053,661.5,660.75,0.30268634]
[1740148815771,1.10867053,661.49,660.75,0.30268634]
[1740148815970,1.10867053,661.48,660.75,0.30268634]
[1740148816166,1.10867053,661.47,660.75,0.30268634]
[1740148816370,1.10867053,661.46,660.75,0.30268634]
[1740148816568,1.93859589,661.45,660.75,0.30268634]
[1740148816764,1.10867053,661.44,660.75,0.30268634]
[1740148816970,1.93859589,661.43,660.75,0.30268634]
[1740148817166,1.10867053,661.42,660.75,0.30268634]
[1740148817371,1.93859589,661.41,660.75,0.30268634]
[1740148817672,1.93859589,661.4,660.75,0.30268634]
[1740148817873,1.93859589,661.39,660.75,0.30268634]
[1740148818071,1.10867053,661.38,660.75,0.30268634]
[1740148818265,1.10867053,661.37,660.75,0.30268634]
[1740148818467,1.10867053,661.36,660.75,0.30268634]
[1740148818668,1.10999445,661.35,660.75,0.30268634]
[1740148818866,1.10999445,661.34,660.75,0.30268634]
[1740148819166,1.93991981,661.33,660.75,0.30268634]
[1740148819372,1.10999445,661.32,660.75,0.30268634]
[1740148819565,1.10999445,661.31,660.75,0.30268634]
[1740148819766,1.93991981,661.3,660.75,0.30268634]
[1740148819971,0.82992536,661.3,660.75,0.30268634]
[1740148820165,5.78915304,662.86,660.75,0.30268634]
[1740148820366,0.30176836,662.76,660.75,0.30268634]
[1740148820571,4.43266728,662.75,660.75,0.30268634]
[1740148820764,4.43266728,662.74,660.75,0.30268634]
[1740148820970,4.43266728,662.73,660.75,0.30268634]
[1740148821172,4.43266728,662.72,660.75,0.30268634]
[1740148821370,0.30179568,662.7,660.75,0.30268634]
[1740148821569,4.43266728,662.69,660.75,0.30268634]
[1740148821871,0.30180934,662.67,660.75,0.30268634]
[1740148822071,1.94080372,662.66,660.75,0.30268634]
[1740148822270,1.11008827,662.65,660.75,0.30268634]
[1740148822470,1.11008827,662.64,660.75,0.30268634]
[1740148822673,0.30183212,662.62,660.75,0.30268634]
[1740148822971,1.94080372,662.61,660.75,0.30268634]
[1740148823169,0.30184578,662.59,660.75,0.30268634]
[1740148823375,1.94080372,662.58,660.75,0.30268634]
[1740148823574,0.30185945,662.56,660.75,0.30268634]
[1740148823769,1.11008827,662.55,660.75,0.30268634]
[1740148823968,1.11008827,662.54,660.75,0.30268634]
[1740148824172,1.11008827,662.53,660.75,0.30268634]
[1740148824372,0.30188223,662.51,660.75,0.30268634]
[1740148824574,1.11008827,662.5,660.75,0.30268634]
[1740148824770,1.41197961,662.49,660.75,0.30268634]
[1740148824976,1.41198417,662.48,660.75,0.30268634]
[1740148825175,1.41198873,662.47,660.75,0.30268634]
[1740148825374,2.24270874,662.46,660.75,0.30268634]
[1740148825575,2.24271329,662.45,660.75,0.30268634]
[1740148825775,1.4120024,662.44,660.75,0.30268634]
[1740148825971,1.41200696,662.43,660.75,0.30268634]
[1740148826176,2.24272697,662.42,660.75,0.30268634]
[1740148826376,2.24273152,662.41,660.75,0.30268634]
[1740148826577,1.41202063,662.4,660.75,0.30268634]
[1740148826777,1.41202519,662.39,660.75,0.30268634]
[1740148826980,2.2427452,662.38,660.75,0.30268634]
[1740148827278,1.11008827,662.37,660.75,0.30268634]
[1740148827479,1.41203887,662.36,660.75,0.30268634]
[1740148827678,1.94080372,662.35,660.75,0.30268634]
[1740148827879,1.11008827,662.34,660.75,0.30268634]
[1740148828181,1.11008827,662.33,660.75,0.30268634]
[1740148828383,1.11008827,662.32,660.75,0.30268634]
[1740148828578,1.11008827,662.31,660.75,0.30268634]
[1740148828773,1.11008827,662.3,660.75,0.30268634]
[1740148828976,1.11008827,662.29,660.75,0.30268634]
[1740148829182,1.11008827,662.28,660.75,0.30268634]
[1740148829379,1.11008827,662.27,660.75,0.30268634]
[1740148829577,1.11008827,662.26,660.75,0.30268634]
[1740148829776,1.11008827,662.25,660.75,0.30268634]
[1740148829980,1.11008827,662.24,660.75,0.30268634]
[1740148830177,1.94080372,662.23,660.75,0.30268634]
[1740148830480,1.94080372,662.22,660.94,1.34900298]
[1740148830677,1.11008827,662.21,660.95,0.30259474]
[1740148830879,1.11008827,662.2,660.95,0.30259474]
[1740148831082,1.11008827,662.19,660.95,0.30259474]
[1740148831282,1.94080372,662.18,660.95,0.30259474]
[1740148831483,1.11008827,662.17,660.95,0.30259474]
[1740148831676,1.11008827,662.16,660.95,0.30259474]
[1740148831879,1.11008827,662.15,660.95,0.30259474]
[1740148832080,1.11008827,662.14,660.95,0.30259474]
[1740148832376,1.94080372,662.13,660.95,0.30259474]
[1740148832577,1.11008827,662.12,660.95,0.30259474]
[1740148832782,1.11008827,662.11,660.95,0.30259474]
[1740148833081,1.94080372,662.1,660.95,0.30259474]
[1740148833276,1.11008827,662.09,660.95,0.30259474]
[1740148833479,1.94080372,662.08,660.95,0.30259474]
[1740148833682,1.11008827,662.07,660.95,0.30259474]
[1740148833876,1.11008827,662.06,660.95,0.30259474]
[1740148834076,1.11008827,662.05,660.95,0.30259474]
[1740148834281,1.11008827,662.04,660.95,0.30259474]
[1740148834483,1.11008827,662.03,660.95,0.30259474]
[1740148834783,1.11008827,662.02,660.95,0.30259474]
[1740148835083,1.11233207,662.01,660.95,0.30259474]
[1740148835275,1.11233207,662.0,660.95,0.30259474]
[1740148835480,1.94304752,661.99,660.95,0.30259474]
[1740148835679,1.11233207,661.98,660.95,0.30259474]
[1740148835982,1.11195284,661.97,660.95,0.30259474]
[1740148836183,1.11195284,661.96,660.95,0.30259474]
[1740148836382,1.11195284,661.95,660.95,0.30259474]
[1740148836583,1.11195284,661.94,660.95,0.30259474]
[1740148836782,1.11195284,661.93,660.95,0.30259474]
[1740148836979,1.11195284,661.92,660.95,0.30259474]
[1740148837182,1.11195284,661.91,660.95,0.30259474]
[1740148837483,1.11195284,661.9,660.95,0.30259474]
[1740148837683,1.11195284,661.89,660.95,0.30259474]
[1740148837978,1.94266829,661.88,660.95,0.30259474]
[1740148838179,1.11195284,661.87,660.97,1.34900298]
[1740148838485,1.11195284,661.86,660.99,0.30257643]
[1740148838679,1.11195284,661.85,660.99,0.30257643]
[1740148838882,1.94266829,661.84,660.99,0.30257643]
[1740148839083,1.11195284,661.83,660.99,0.30257643]
[1740148839278,1.94266829,661.82,660.99,0.30257643]
[1740148839582,1.11195284,661.81,660.99,0.30257643]
[1740148839778,1.11195284,661.8,660.99,0.30257643]
[1740148839984,1.11195284,661.79,660.99,0.30257643]
[1740148840180,1.11195284,661.78,660.99,0.30257643]
[1740148840383,1.11195284,661.77,660.99,0.30257643]
[1740148840585,1.11195284,661.76,660.99,0.30257643]
[1740148840785,1.11195284,661.75,660.99,0.30257643]
[1740148840980,1.11195284,661.74,660.99,0.30257643]
[1740148841183,1.11195284,661.73,660.99,0.30257643]
[1740148841383,1.11195284,661.72,660.99,0.30257643]
[1740148841686,1.11195043,661.71,660.99,0.30257643]
[1740148841886,1.11195043,661.7,660.99,0.30257643]
[1740148842082,1.11195043,661.69,660.99,0.30257643]
[1740148842282,1.94266588,661.68,660.99,0.30257643]
[1740148842483,1.11195043,661.67,660.99,0.30257643]
[1740148842786,1.94266588,661.66,660.99,0.30257643]
[1740148843086,1.11195043,661.65,660.99,0.30257643]
[1740148843287,1.11195043,661.64,660.99,1.65157941]
[1740148843481,1.94237909,661.63,660.99,1.65157941]
[1740148843681,1.11166364,661.62,660.99,1.65157941]
[1740148843882,1.94237909,661.61,660.99,1.65157941]
[1740148844084,1.11166364,661.6,660.99,1.65157941]
[1740148844280,1.11166364,661.59,660.99,1.65157941]
[1740148844483,1.11166364,661.58,660.99,1.65157941]
[1740148844686,1.11166364,661.57,660.99,1.65157941]
[1740148844883,1.94237909,661.56,660.99,1.65157941]
[1740148845188,1.94237909,661.55,660.99,0.30257643]
[1740148845389,1.11166364,661.54,660.99,0.30257643]
[1740148845592,1.94237909,661.53,660.99,0.30257643]
[1740148845784,1.94237909,661.52,660.99,0.30257643]
[1740148845987,1.11166364,661.51,660.99,0.30257643]
[1740148846186,1.11166364,661.5,660.99,0.30257643]
[1740148846390,1.11166364,661.49,660.99,0.30257643]
[1740148846589,1.94237909,661.48,660.99,0.30257643]
[1740148846790,1.11166364,661.47,660.99,0.30257643]
[1740148846983,1.11166364,661.46,660.99,0.30257643]
[1740148847292,1.11166364,661.45,660.99,0.30257643]
[1740148847486,1.94237909,661.44,660.99,0.30257643]
[1740148847692,1.11166364,661.43,660.99,0.30257643]
[1740148847992,1.94237909,661.42,660.99,0.30257643]
[1740148848191,1.94237909,661.41,660.99,0.30257643]
[1740148848388,1.11166364,661.4,660.99,0.30257643]
[1740148848588,1.11166364,661.39,660.99,0.30257643]
[1740148848790,1.11166364,661.38,660.99,0.30257643]
[1740148848991,1.11166364,661.37,660.99,0.30257643]
[1740148849191,1.11166364,661.36,660.99,0.30257643]
[1740148849384,1.11166364,661.35,660.99,0.30257643]
[1740148849589,1.11166364,661.34,660.99,0.30257643]
[1740148849790,1.11166364,661.33,660.99,0.30257643]
[1740148849985,1.11166364,661.32,660.99,0.30257643]
[1740148850190,1.11166364,661.31,660.99,0.30257643]
[1740148850391,1.11166364,661.3,660.99,0.30257643]
[1740148850592,1.11166364,661.29,660.99,0.30257643]
[1740148850787,1.11166364,661.28,660.99,0.30257643]
[1740148851087,0.83071545,661.27,660.99,0.30257643]
[1740148851893,1.11282712,661.26,660.99,0.30257643]
[1740148852088,1.1127703,661.25,660.99,0.30257643]
[1740148852290,1.1127703,661.24,660.99,0.30257643]
[1740148852492,1.94544764,661.23,660.99,0.30257643]
[1740148852686,1.1127703,661.22,660.99,0.30257643]
[1740148852994,1.1127703,661.21,660.99,0.30257643]
[1740148853194,1.1127703,661.2,660.99,0.30257643]
[1740148853394,0.83267734,661.23,660.99,0.30257643]
[1740148853395,1.1127703,661.19,660.99,0.30257643]
[1740148853589,1.1127703,661.18,660.99,0.30257643]
[1740148853894,1.94524747,661.17,660.99,0.30257643]
[1740148854096,1.11257013,661.16,660.99,0.30257643]
[1740148854289,1.11257013,661.15,660.99,0.30257643]
[1740148854493,1.11257013,661.14,660.99,0.30257643]
[1740148854691,1.11257013,661.13,660.99,0.30257643]
[1740148854888,0.83267734,661.14,660.56,1.34900298]
[1740148854889,1.11257013,661.12,660.56,1.34900298]
[1740148855089,1.11257013,661.11,660.57,0.30276882]
[1740148855296,1.94524747,661.1,660.57,0.30276882]
[1740148855495,1.11257013,661.09,660.57,0.30276882]
[1740148855794,1.11257013,661.08,660.57,0.30276882]
[1740148855995,0.83267734,661.08,660.57,0.30276882]
[1740148856396,0.3019506,662.36,660.57,0.30276882]
[1740148856693,1.11199596,662.35,660.57,0.30276882]
[1740148856889,1.41395567,662.34,660.57,0.30276882]
[1740148857093,1.41396023,662.33,660.57,0.30276882]
[1740148857293,1.41396479,662.32,660.57,0.30276882]
[1740148857495,1.11199596,662.31,660.57,0.30276882]
[1740148857690,1.11199596,662.3,660.57,0.30276882]
[1740148857996,1.11199596,662.29,660.57,0.30276882]
[1740148858191,1.41398303,662.28,660.57,0.30276882]
[1740148858395,4.44836208,662.27,660.57,0.30276882]
[1740148858692,1.13426504,662.28,660.57,0.30276882]
[1740148858693,7.77623426,662.26,660.57,0.30276882]
[1740148858894,4.44836208,662.25,660.57,0.30276882]
[1740148859094,4.44836208,662.24,660.57,0.30276882]
[1740148859291,4.44836208,662.23,660.57,0.30276882]
[1740148859496,4.44836208,662.22,660.57,0.30276882]
[1740148859698,5.58265904,662.21,660.57,0.30276882]
[1740148859898,4.75038563,662.2,660.57,0.30276882]
[1740148860093,4.44836208,662.19,660.57,0.30276882]
[1740148860298,4.44836208,662.18,660.57,0.30276882]
[1740148860599,4.44836208,662.17,660.57,0.30276882]
[1740148860798,4.44836208,662.16,660.57,0.30276882]
[1740148861101,8.07828062,662.15,660.57,0.30276882]
[1740148861301,4.44836208,662.14,660.57,0.30276882]
[1740148861599,4.75041756,662.13,660.57,0.30276882]
[1740148861799,4.75042212,662.12,660.57,0.30276882]
[1740148861995,2.2464331,662.11,660.57,0.30276882]
[1740148862200,1.11209052,662.1,660.57,0.30276882]
[1740148862396,1.11209052,662.09,660.57,0.30276882]
[1740148862594,1.11209052,662.08,660.57,0.30276882]
[1740148862798,1.11209052,662.07,660.57,0.30276882]
[1740148863099,1.11209052,662.06,660.57,0.30276882]
[1740148863298,1.11209052,662.05,660.57,0.30276882]
[1740148863492,1.11209052,662.04,660.57,0.30276882]
[1740148863697,1.11209052,662.03,660.57,0.30276882]
[1740148863900,1.11209052,662.02,660.57,0.30276882]
[1740148864094,1.11209052,662.01,660.57,0.30276882]
[1740148864299,1.94436849,662.0,660.57,0.30276882]
[1740148864495,1.11209052,661.99,660.57,0.30276882]
[1740148864700,1.94436849,661.98,660.57,0.30276882]
[1740148864897,1.11209052,661.97,660.57,0.30276882]
[1740148865199,1.94436849,661.96,660.57,0.30276882]
[1740148865393,1.11209052,661.95,660.57,0.30276882]
[1740148865594,1.94436849,661.94,660.57,0.30276882]
[1740148865796,1.11209052,661.93,660.57,0.30276882]
[1740148865996,1.94436849,661.92,660.57,0.30276882]
[1740148866195,1.11209052,661.91,660.57,0.30276882]
[1740148866395,1.94436849,661.9,660.57,0.30276882]
[1740148866702,1.11209052,661.89,660.57,0.30276882]
[1740148866904,1.11209052,661.88,660.57,0.30276882]
[1740148867095,1.11209052,661.87,660.57,0.30276882]
[1740148867300,1.11209052,661.86,660.57,0.30276882]
[1740148867495,1.11209052,661.85,660.57,0.30276882]
[1740148867703,1.11209052,661.84,660.57,0.30276882]
[1740148867894,1.11209052,661.83,660.57,0.30276882]
[1740148868095,1.457,662.22,660.57,0.30276882]
[1740148868096,1.94436849,661.82,660.57,0.30276882]
[1740148868295,1.11209052,661.81,660.57,0.30276882]
[1740148868499,1.94436849,661.8,660.57,0.30276882]
[1740148868697,1.11209052,661.79,660.57,0.30276882]
[1740148868901,1.11209052,661.78,660.57,0.30276882]
[1740148869102,1.11209052,661.77,660.58,1.34900298]
[1740148869302,1.11209052,661.76,660.58,1.34900298]
[1740148869501,1.11209052,661.75,660.58,1.34900298]
[1740148869702,1.11209052,661.74,660.6,0.30275507]
[1740148869898,1.11209052,661.73,660.6,0.30275507]
[1740148870099,1.11209052,661.72,660.6,0.30275507]
[1740148870305,1.11209052,661.71,660.6,0.30275507]
[1740148870503,1.11209052,661.7,660.6,0.30275507]
[1740148870703,1.11209052,661.69,660.6,0.30275507]
[1740148870904,1.94436849,661.68,660.6,0.30275507]
[1740148871101,1.11209052,661.67,660.6,0.30275507]
[1740148871300,1.11209052,661.66,660.6,0.30275507]
[1740148871500,1.94436849,661.65,660.6,0.30275507]
[1740148871697,1.11209052,661.64,660.6,0.30275507]
[1740148871899,1.11209052,661.63,660.6,0.30275507]
[1740148872098,0.83227797,661.65,660.6,0.30275507]
[1740148872099,1.11209052,661.62,660.6,0.30275507]
[1740148872303,1.11209052,661.61,660.6,0.30275507]
[1740148872500,1.94436849,661.6,660.6,0.30275507]
[1740148872703,1.11209052,661.59,660.6,0.30275507]
[1740148872898,1.94436849,661.58,660.6,0.30275507]
[1740148873103,1.11209052,661.57,660.6,0.30275507]
[1740148873303,1.94436849,661.56,660.6,0.30275507]
[1740148873606,1.94436849,661.55,660.6,0.30275507]
[1740148873906,1.11209052,661.54,660.6,0.30275507]
[1740148874107,0.83227797,661.55,660.6,0.30275507]
[1740148874108,1.11209052,661.53,660.6,0.30275507]
[1740148874406,1.11209052,661.52,660.6,0.30275507]
[1740148874706,1.94443054,661.51,660.6,0.30275507]
[1740148874908,1.11215257,661.5,660.6,0.30275507]
[1740148875107,1.11215257,661.49,660.6,0.30275507]
[1740148875305,1.94443054,661.48,660.6,0.30275507]
[1740148875500,1.11215257,661.47,660.6,0.30275507]
[1740148875703,1.94443054,661.46,660.6,0.30275507]
[1740148875903,1.11215257,661.45,660.6,0.30275507]
[1740148876105,1.94443054,661.44,660.6,0.30275507]
[1740148876306,1.11215257,661.43,660.6,0.30275507]
[1740148876506,1.94443054,661.42,660.6,0.30275507]
[1740148876706,1.11215257,661.41,660.6,0.30275507]
[1740148876909,1.11215257,661.4,660.6,0.30275507]
[1740148877208,1.11215257,661.39,660.6,0.30275507]
[1740148877410,0.83227797,661.42,660.6,0.30275507]
[1740148877411,1.94443054,661.38,660.6,0.30275507]
[1740148877611,1.11215257,661.37,660.6,0.30275507]
[1740148877813,0.83227797,661.38,660.6,0.30275507]
[1740148878113,1.457,662.22,660.6,0.30275507]
[1740148878310,1.11262476,662.21,660.6,0.30275507]
[1740148878612,1.94518871,662.2,660.6,0.30275507]
[1740148878813,1.11262476,662.19,660.6,0.30275507]
[1740148879014,1.94518871,662.18,660.6,0.30275507]
[1740148879213,1.11262476,662.17,660.6,0.30275507]
[1740148879409,1.11262476,662.16,660.6,0.30275507]
[1740148879607,1.94518871,662.15,660.6,0.30275507]
[1740148879811,1.94518871,662.14,660.6,0.30275507]
[1740148880010,1.11285256,662.13,660.6,0.30275507]
[1740148880315,1.11285256,662.12,660.6,0.30275507]
[1740148880613,1.11285256,662.11,660.6,0.30275507]
[1740148880813,1.94541651,662.1,660.6,0.30275507]
[1740148881013,1.11285256,662.09,660.6,0.30275507]
[1740148881213,1.11285256,662.08,660.6,0.30275507]
[1740148881515,1.11285256,662.07,660.6,0.30275507]
[1740148881814,1.94541651,662.06,660.64,1.34900298]
[1740148882008,1.94541651,662.05,660.66,0.30272757]
[1740148882209,1.11285256,662.04,660.66,0.30272757]
[1740148882515,1.11285256,662.03,660.66,0.30272757]
[1740148882817,1.94541651,662.02,660.66,0.30272757]
[1740148883014,1.11285256,662.01,660.66,0.30272757]
[1740148883207,0.83256395,662.02,660.66,0.30272757]
[1740148883406,1.11199249,662.01,660.66,0.30272757]
[1740148883914,0.83256395,662.02,660.66,0.30272757]
[1740148884115,1.11201847,662.01,660.66,0.30272757]
[1740148884614,1.11201847,662.0,660.66,0.30272757]
[1740148884914,1.11201847,661.99,660.66,0.30272757]
[1740148885614,1.11201847,661.98,660.66,0.30272757]
[1740148885814,1.11201847,661.97,660.66,0.30272757]
[1740148886014,1.11201847,661.96,660.66,0.30272757]
[1740148886209,1.11201847,661.95,660.66,0.30272757]
[1740148886408,1.11201847,661.94,660.66,0.30272757]
[1740148886609,1.94458242,661.93,660.66,0.30272757]
[1740148886809,1.11201847,661.92,660.84,1.34900298]
[1740148887016,1.94458242,661.91,660.86,0.30263595]
[1740148887211,1.11201847,661.9,660.86,0.30263595]
[1740148887413,1.94458242,661.89,660.86,0.30263595]
[1740148887607,1.11201847,661.88,660.86,0.30263595]
[1740148887811,1.11201847,661.87,660.86,0.30263595]
[1740148888009,1.11201847,661.86,660.86,0.30263595]
[1740148888212,1.11201847,661.85,660.86,0.30263595]
[1740148888515,1.11201847,661.84,660.86,0.30263595]
[1740148888714,1.94458242,661.83,660.86,0.30263595]
[1740148888908,1.11201847,661.82,660.86,0.30263595]
[1740148889109,1.11201847,661.81,660.86,0.30263595]
[1740148889310,1.11201847,661.8,660.86,0.30263595]
[1740148889513,1.11201847,661.79,660.86,0.30263595]
[1740148889716,1.11201847,661.78,660.86,0.30263595]
[1740148889915,1.11201847,661.77,660.86,0.30263595]
[1740148890115,1.11201847,661.76,660.86,0.30263595]
[1740148890415,1.94458242,661.75,660.86,0.30263595]
[1740148890609,1.11201847,661.74,660.86,0.30263595]
[1740148890809,0.83256395,661.75,660.86,0.30263595]
[1740148891116,1.9430709,661.74,660.86,0.30263595]
[1740148891319,1.11050695,661.73,660.86,0.30263595]
[1740148891518,0.83256395,661.73,660.86,0.30263595]
[1740148891911,3.33152087,663.77,660.86,0.30263595]
[1740148892113,1.576,662.02,660.86,0.30263595]
[1740148892312,1.11012738,662.01,660.86,0.30263595]
[1740148892513,1.11012738,662.0,660.86,0.30263595]
[1740148892712,1.11012738,661.99,660.86,0.30263595]
[1740148892917,1.11012738,661.98,660.86,0.30263595]
[1740148893119,1.11012738,661.97,660.86,0.30263595]
[1740148893312,1.1095765,661.96,660.86,0.30263595]
[1740148893515,1.1095765,661.95,660.86,0.30263595]
[1740148893714,1.1095765,661.94,660.86,0.30263595]
[1740148893917,1.1095765,661.93,660.86,0.30263595]
[1740148894215,1.1095765,661.92,660.86,0.30263595]
[1740148894418,1.1095765,661.91,660.86,0.30263595]
[1740148894616,1.1095765,661.9,660.86,0.30263595]
[1740148894817,1.1095765,661.89,660.86,0.30263595]
[1740148895019,1.1095765,661.88,660.86,0.30263595]
[1740148895318,1.1095765,661.87,660.86,0.30263595]
[1740148895622,1.1095765,661.86,660.86,0.30263595]
[1740148895815,1.94005568,661.85,660.86,0.30263595]
[1740148896014,1.1095765,661.84,660.86,0.30263595]
[1740148896220,0.83047918,661.83,660.86,0.30263595]
[1740148896724,0.83047918,661.82,660.86,0.30263595]
[1740148897022,1.576,662.02,660.86,0.30263595]
[1740148897223,1.93835669,662.01,660.86,0.30263595]
[1740148897526,1.93835669,662.0,660.86,0.30263595]
[1740148897925,1.93835669,661.99,660.86,0.30263595]
[1740148898125,1.10885635,661.98,660.86,0.30263595]
[1740148898324,1.10885635,661.97,660.86,0.30263595]
[1740148898524,0.82950034,661.97,660.86,0.30263595]
[1740148898825,1.576,662.02,660.86,0.30263595]
[1740148900724,1.576,662.02,660.86,1.65163893]
[1740148902624,1.576,662.02,660.86,0.30263595]
[1740148904228,2.49731895,664.37,660.86,0.30263595]
[1740148904420,1.10375478,663.62,660.86,0.30263595]
[1740148904623,1.10375478,663.61,660.86,0.30263595]
[1740148904827,1.10375478,663.6,660.86,0.30263595]
[1740148905026,0.82558263,663.62,660.86,0.30263595]
[1740148905027,1.92933741,663.59,660.86,0.30263595]
[1740148905224,2.49731895,664.36,660.86,0.30263595]
[1740148905225,1.92933741,663.58,660.86,0.30263595]
[1740148905524,1.40515478,663.57,660.86,0.30263595]
[1740148905728,1.10375478,663.56,660.86,0.30263595]
[1740148905927,0.3014,663.57,660.86,0.30263595]
[1740148905928,1.10375478,663.55,660.86,0.30263595]
[1740148906229,1.10375478,663.54,660.86,0.30263595]
[1740148906427,1.10375478,663.53,660.86,0.30263595]
[1740148906623,1.92933741,663.52,660.86,0.30263595]
[1740148906828,1.10375478,663.51,660.86,0.30263595]
[1740148907125,1.92933741,663.5,660.86,0.30263595]
[1740148907329,1.10375478,663.49,660.86,0.30263595]
[1740148907629,1.10375478,663.48,660.86,0.30263595]
[1740148907929,1.10375478,663.47,660.86,0.30263595]
[1740148908129,1.10096259,663.46,660.86,0.30263595]
[1740148908330,1.10096259,663.45,660.86,0.30263595]
[1740148908529,1.10096259,663.44,660.86,0.30263595]
[1740148908729,1.10096259,663.43,660.86,0.30263595]
[1740148908931,1.10096259,663.42,660.86,0.30263595]
[1740148909229,1.10096259,663.41,660.86,0.30263595]
[1740148909430,1.10096259,663.4,660.86,0.30263595]
[1740148909731,1.10096259,663.39,660.86,0.30263595]
[1740148909930,1.10096259,663.38,660.86,0.30263595]
[1740148910133,1.10096259,663.37,660.86,0.30263595]
[1740148910327,1.10096259,663.36,660.86,0.30263595]
[1740148910527,1.10096259,663.35,660.86,0.30263595]
[1740148910728,1.10096259,663.34,660.86,0.30263595]
[1740148911028,1.10096259,663.33,660.86,0.30263595]
[1740148911224,1.10096259,663.32,660.86,0.30263595]
[1740148911528,1.10096259,663.31,660.86,0.30263595]
[1740148911728,1.10096259,663.3,660.86,0.30263595]
[1740148911932,1.10096259,663.29,660.86,0.30263595]
[1740148912132,1.10096259,663.28,660.86,0.30263595]
[1740148912432,1.10096259,663.27,660.86,0.30263595]
[1740148912632,1.10096259,663.26,660.86,0.30263595]
[1740148912932,1.10096259,663.25,660.86,0.30263595]
[1740148913132,1.10096259,663.24,660.86,0.30263595]
[1740148913331,1.10096259,663.23,660.86,0.30263595]
[1740148913532,1.10096259,663.22,660.86,0.30263595]
[1740148913730,1.10096259,663.21,660.86,0.30263595]
[1740148913929,1.10096259,663.2,660.86,0.30263595]
[1740148914132,1.10096259,663.19,660.86,0.30263595]
[1740148914331,1.10096259,663.18,660.86,0.30263595]
[1740148914527,1.10096259,663.17,660.86,0.30263595]
[1740148914728,1.10096259,663.16,660.86,0.30263595]
[1740148914930,1.92654522,663.15,660.86,0.30263595]
[1740148915131,1.10096259,663.14,660.86,0.30263595]
[1740148915330,0.82558263,663.15,660.86,0.30263595]
[1740148915628,0.82558263,663.13,660.86,0.30263595]
[1740148915831,1.09694296,663.12,660.86,0.30263595]
[1740148916135,1.92252559,663.11,660.86,0.30263595]
[1740148916433,1.09694296,663.1,660.86,0.30263595]
[1740148916633,1.09694296,663.09,660.86,0.30263595]
[1740148916834,1.09694296,663.08,660.86,0.30263595]
[1740148917029,1.09694296,663.07,660.86,0.30263595]
[1740148917229,1.09694296,663.06,660.86,0.30263595]
[1740148917427,1.09694296,663.05,660.86,0.30263595]
[1740148917632,1.09694296,663.04,660.86,0.30263595]
[1740148917934,1.92252559,663.03,660.86,0.30263595]
[1740148918131,1.09694296,663.02,660.86,0.30263595]
[1740148918331,3.29884942,664.48,660.86,0.30263595]
[1740148918533,1.09577203,663.75,660.86,0.30263595]
[1740148918833,1.09577203,663.74,660.86,0.30263595]
[1740148919028,1.09577203,663.73,660.86,0.30263595]
[1740148919231,1.09577203,663.72,660.86,0.30263595]
[1740148919428,1.09577203,663.71,660.86,0.30263595]
[1740148919628,1.09577203,663.7,660.86,0.30263595]
[1740148919835,1.09577203,663.69,660.86,0.30263595]
[1740148920131,1.09577203,663.68,660.86,0.30263595]
[1740148920334,1.09577203,663.67,660.86,0.30263595]
[1740148920535,1.09577203,663.66,660.86,0.30263595]
[1740148920728,0.81944804,663.67,660.86,0.30263595]
[1740148920930,1.91458312,663.66,660.86,0.30263595]
[1740148921129,1.09513508,663.65,660.86,0.30263595]
[1740148921333,1.09513508,663.64,660.86,0.30263595]
[1740148921534,1.09513508,663.63,660.86,0.30263595]
[1740148921735,1.09513508,663.62,660.86,0.30263595]
[1740148921934,1.09513508,663.61,660.86,0.30263595]
[1740148922134,1.09513508,663.6,660.86,0.30263595]
[1740148922338,1.09513508,663.59,660.86,0.30263595]
[1740148922534,1.09513508,663.58,660.86,0.30263595]
[1740148922837,1.09513508,663.57,660.86,0.30263595]
[1740148923034,1.09513508,663.56,660.86,0.30263595]
[1740148923235,1.09513508,663.55,660.86,0.30263595]
[1740148923433,1.09404724,663.54,660.86,0.30263595]
[1740148923737,1.91349528,663.53,660.86,0.30263595]
[1740148923937,1.09404724,663.52,660.86,0.30263595]
[1740148924133,1.09404724,663.51,660.86,0.30263595]
[1740148924341,1.09404724,663.5,660.86,0.30263595]
[1740148924533,1.09404724,663.49,660.86,0.30263595]
[1740148924736,1.09404724,663.48,660.86,0.30263595]